bitfinex-derivatives/quotes_BTCF0:USTF0_20250922
["timestamp","ask_amount","ask_price","bid_price","bid_amount"]
[1758568697899,0.31219953,112580.0,112570.0,2.02279343]
[1758568700792,0.02575953,112580.0,112570.0,2.02279343]
[1758568701199,0.02535953,112580.0,112570.0,2.02279343]
[1758568701495,0.02535953,112580.0,112570.0,2.27279343]
[1758568701496,0.0034,112580.0,112570.0,2.27279343]
[1758568701696,0.003,112580.0,112570.0,2.27279343]
[1758568701897,0.0034,112580.0,112570.0,2.27279343]
[1758568703202,0.0034,112580.0,112570.0,1.45219343]
[1758568703402,0.02575794,112580.0,112570.0,2.27251343]
[1758568705500,0.0034,112580.0,112570.0,2.27251343]
[1758568705701,0.003,112580.0,112570.0,2.27251343]
[1758568706296,0.0008,112600.0,112590.0,0.1083928]
[1758568706501,0.0008,112600.0,112590.0,2.34381773]
[1758568706696,0.0132,112610.0,112600.0,0.0887449]
[1758568706904,0.02225078,112610.0,112600.0,1.15976983]
[1758568707105,0.04460823,112610.0,112600.0,1.15976983]
[1758568707601,0.04460823,112610.0,112600.0,1.98036983]
[1758568708307,0.05060823,112610.0,112600.0,1.98136983]
[1758568708900,0.06360823,112610.0,112600.0,1.98436983]
[1758568709909,0.13419552,112610.0,112600.0,1.98436983]
[1758568710114,0.06360823,112610.0,112600.0,1.98436983]
[1758568710500,0.04135745,112610.0,112600.0,1.98436983]
[1758568710810,0.04175745,112610.0,112600.0,2.1790298]
[1758568711307,0.04175745,112610.0,112600.0,1.3584298]
[1758568711608,0.04175745,112610.0,112600.0,2.47117225]
[1758568711807,0.04135745,112610.0,112600.0,2.47117225]
[1758568712008,0.04175745,112610.0,112600.0,2.47117225]
[1758568712202,0.04175745,112610.0,112600.0,2.1785498]
[1758568713004,0.04175745,112610.0,112600.0,1.3584298]
[1758568713206,0.05066705,112610.0,112600.0,1.3584298]
[1758568713405,0.31407705,112610.0,112600.0,2.1784698]
[1758568713612,0.76596006,112610.0,112600.0,1.5931449]
[1758568713813,0.76596006,112610.0,112600.0,1.88576735]
[1758568714114,0.76596006,112610.0,112600.0,1.88608735]
[1758568714507,0.38460041,112610.0,112600.0,1.88608735]
[1758568714713,0.38460041,112610.0,112600.0,2.1787098]
[1758568717415,0.47333761,112610.0,112600.0,2.1782698]
[1758568717815,0.47333761,112610.0,112600.0,2.1783898]
[1758568718513,0.47293761,112610.0,112600.0,2.1783898]
[1758568718916,0.38420041,112610.0,112600.0,2.1783898]
[1758568719115,0.38980041,112610.0,112600.0,2.1783898]
[1758568719415,0.13980041,112610.0,112600.0,2.1783898]
[1758568721419,0.13980041,112610.0,112600.0,2.1778298]
[1758568726622,0.13980041,112610.0,112600.0,1.5925849]
[1758568726823,0.13980041,112610.0,112600.0,2.1778298]
[1758568727919,0.13980041,112610.0,112600.0,1.5925849]
[1758568728120,0.13980041,112610.0,112600.0,2.1778298]
[1758568728315,0.16281041,112610.0,112600.0,0.7731849]
[1758568728521,0.16281041,112610.0,112600.0,2.1767498]
[1758568728717,0.16281041,112610.0,112600.0,1.88408735]
[1758568728718,0.25154761,112610.0,112600.0,1.88408735]
[1758568728917,0.25154761,112610.0,112600.0,1.06580735]
[1758568729119,0.25154761,112610.0,112600.0,1.88408735]
[1758568729427,0.25154761,112610.0,112600.0,2.1767098]
[1758568731125,0.25154761,112610.0,112600.0,1.3584298]
[1758568731320,0.54417006,112610.0,112600.0,1.88368735]
[1758568733227,0.54417006,112610.0,112600.0,2.1763098]
[1758568733726,0.25154761,112610.0,112600.0,2.1763098]
[1758568733923,0.25154761,112610.0,112600.0,2.1761898]
[1758568734428,0.54417006,112610.0,112600.0,1.88356735]
[1758568734727,0.54417006,112610.0,112600.0,2.1761898]
[1758568735524,0.54417006,112610.0,112600.0,1.06580755]
[1758568735827,0.82601556,112610.0,112600.0,0.32364]
[1758568736028,0.82601556,112610.0,112600.0,0.304]
[1758568736529,1.64333556,112610.0,112600.0,0.304]
[1758568736831,1.64321556,112610.0,112600.0,0.304]
[1758568739132,2.00401556,112610.0,112600.0,0.304]
[1758568739528,2.00401556,112610.0,112600.0,0.004]
[1758568739529,2.29663801,112610.0,112600.0,0.004]
[1758568739928,1.18681556,112610.0,112600.0,0.004]
[1758568740327,2.00385556,112610.0,112600.0,0.004]
[1758568741030,1.18681556,112610.0,112600.0,0.004]
[1758568741232,2.00377556,112610.0,112600.0,0.004]
[1758568742232,0.64419311,112610.0,112600.0,0.02364]
[1758568742433,1.75357556,112610.0,112600.0,0.1123851]
[1758568742633,1.75357556,112610.0,112600.0,0.02364]
[1758568743033,2.00357556,112610.0,112600.0,0.004]
[1758568743232,2.34396239,112610.0,112600.0,0.004]
[1758568743536,1.23457994,112610.0,112600.0,0.004]
[1758568743834,2.05161994,112610.0,112600.0,0.004]
[1758568744034,2.34424239,112610.0,112600.0,0.004]
[1758568744431,2.31239689,112610.0,112600.0,0.004]
[1758568745230,2.29640349,112610.0,112600.0,0.004]
[1758568745433,0.1231508,112580.0,112570.0,0.76202485]
[1758568745639,0.1231508,112580.0,112570.0,1.11182485]
[1758568745640,1.2551307,112580.0,112570.0,1.11182485]
[1758568746129,0.73075315,112580.0,112570.0,0.37004]
[1758568746335,1.2552907,112580.0,112570.0,0.36004]
[1758568746537,1.2552907,112580.0,112570.0,0.4488087]
[1758568746837,1.2552907,112580.0,112570.0,0.74143115]
[1758568747238,1.2562907,112580.0,112570.0,0.4484087]
[1758568747535,1.2562907,112580.0,112570.0,0.74143115]
[1758568747729,1.2592907,112580.0,112570.0,0.74343115]
[1758568747928,1.2592907,112580.0,112570.0,0.65466245]
[1758568750341,1.2592907,112580.0,112570.0,0.74343115]
[1758568751037,1.2592907,112580.0,112570.0,0.4508087]
[1758568751237,1.2592907,112580.0,112570.0,0.36204]
[1758568751442,1.55191315,112580.0,112570.0,0.36204]
[1758568751641,1.55191315,112580.0,112570.0,0.36164]
[1758568751938,1.55191315,112580.0,112570.0,0.36204]
[1758568752736,1.55191315,112580.0,112570.0,0.0024]
[1758568753439,1.55191315,112580.0,112570.0,0.02204]
[1758568753641,1.55191315,112580.0,112570.0,0.0024]
[1758568753841,1.55191315,112580.0,112570.0,0.02204]
[1758568754039,1.55191315,112580.0,112570.0,0.0024]
[1758568755041,1.91271315,112580.0,112570.0,0.0024]
[1758568755238,1.91271315,112580.0,112570.0,0.002]
[1758568755435,1.91271315,112580.0,112570.0,0.0024]
[1758568755742,2.48709627,112580.0,112570.0,0.002]
[1758568755940,2.2422382,112580.0,112570.0,0.0024]
[1758568756130,0.0887847,112550.0,112540.0,0.78013311]
[1758568756440,0.4403346,112550.0,112540.0,0.80731066]
[1758568756637,0.14771215,112550.0,112540.0,1.09993311]
[1758568756839,0.14771215,112550.0,112540.0,1.10033311]
[1758568757339,0.02535745,112550.0,112540.0,1.40595556]
[1758568757531,0.11414215,112550.0,112540.0,1.40595556]
[1758568757734,0.12744215,112550.0,112540.0,1.40595556]
[1758568757946,0.12744215,112550.0,112540.0,1.40995556]
[1758568758635,0.03865745,112550.0,112540.0,1.40995556]
[1758568758834,0.12744215,112550.0,112540.0,1.40995556]
[1758568759350,0.12748408,112550.0,112540.0,1.40995556]
[1758568760036,0.12748408,112550.0,112540.0,1.3918741]
[1758568760843,0.19688741,112550.0,112540.0,1.3918741]
[1758568761044,0.10810271,112550.0,112540.0,1.3918741]
[1758568761245,0.19688741,112550.0,112540.0,1.3918741]
[1758568761839,0.22894707,112550.0,112540.0,0.8066292]
[1758568762144,0.22894707,112550.0,112540.0,1.09925165]
[1758568762344,0.52156952,112550.0,112540.0,1.09925165]
[1758568762745,0.52156952,112550.0,112540.0,1.09885165]
[1758568762948,0.52156952,112550.0,112540.0,1.09925165]
[1758568763749,0.52156952,112550.0,112540.0,0.8066292]
[1758568764046,0.52156952,112550.0,112540.0,1.09925165]
[1758568765844,0.22894707,112550.0,112540.0,1.09925165]
[1758568766353,0.52156952,112550.0,112540.0,1.09925165]
[1758568767042,0.20567707,112550.0,112540.0,1.3918741]
[1758568768351,0.11689237,112550.0,112540.0,1.3918741]
[1758568768852,0.10359237,112550.0,112540.0,1.3918741]
[1758568769252,0.19237707,112550.0,112540.0,1.3918741]
[1758568769859,0.20618707,112550.0,112540.0,1.3918741]
[1758568770664,0.20618707,112550.0,112540.0,1.19729407]
[1758568770864,0.11740237,112550.0,112540.0,1.19729407]
[1758568771566,0.09480271,112550.0,112540.0,1.44729407]
[1758568772162,0.09480271,112550.0,112540.0,2.26377407]
[1758568773761,0.09480271,112550.0,112540.0,2.28145016]
[1758568774065,0.003,112550.0,112540.0,2.28145016]
[1758568775259,0.003,112550.0,112540.0,1.46497016]
[1758568775558,0.003,112550.0,112540.0,2.28105016]
[1758568775960,1e-07,112550.0,112540.0,2.28105016]
[1758568776159,0.03488,112580.0,112570.0,0.1084089]
[1758568776360,0.05734137,112580.0,112570.0,1.98603377]
[1758568776562,0.06636692,112580.0,112570.0,1.98603377]
[1758568777059,0.03148692,112580.0,112570.0,1.98603377]
[1758568777258,0.04529692,112580.0,112570.0,1.98603377]
[1758568777454,0.04829692,112580.0,112570.0,1.98803377]
[1758568777865,0.04869692,112580.0,112570.0,1.98803377]
[1758568778267,0.11986395,112580.0,112570.0,1.98803377]
[1758568779266,0.11986395,112580.0,112570.0,1.98843377]
[1758568779467,0.23081495,112580.0,112570.0,1.5976489]
[1758568779655,0.23081495,112580.0,112570.0,1.98831377]
[1758568780166,0.14205395,112580.0,112570.0,1.98831377]
[1758568781167,0.23081495,112580.0,112570.0,1.17187377]
[1758568781368,0.14205395,112580.0,112570.0,1.98915377]
[1758568781771,0.23081495,112580.0,112570.0,1.98915377]
[1758568781967,0.14205395,112580.0,112570.0,1.98915377]
[1758568782471,0.14205395,112580.0,112570.0,1.17187377]
[1758568782772,0.14205395,112580.0,112570.0,1.98903377]
[1758568783171,0.14205395,112580.0,112570.0,1.5983689]
[1758568783371,0.14205395,112580.0,112570.0,1.98903377]
[1758568784166,0.10605395,112580.0,112570.0,1.98903377]
[1758568784767,0.10565395,112580.0,112570.0,1.98903377]
[1758568785073,0.10605395,112580.0,112570.0,1.98903377]
[1758568785273,0.10605395,112580.0,112570.0,1.17187377]
[1758568785472,0.14205395,112580.0,112570.0,1.98903377]
[1758568786874,0.11986395,112580.0,112570.0,1.98903377]
[1758568787064,0.10605395,112580.0,112570.0,1.98903377]
[1758568787863,0.0970284,112580.0,112570.0,1.61664228]
[1758568788068,0.07456703,112580.0,112570.0,2.00730715]
[1758568788366,0.07416703,112580.0,112570.0,2.00730715]
[1758568788866,0.09703335,112580.0,112570.0,2.00730715]
[1758568789064,0.09663335,112580.0,112570.0,2.00730715]
[1758568789372,0.09703335,112580.0,112570.0,2.00730715]
[1758568790264,0.0034,112580.0,112570.0,1.44014715]
[1758568790464,0.0034,112580.0,112570.0,2.25822715]
[1758568790664,0.003,112580.0,112570.0,2.25822715]
[1758568790875,0.0034,112580.0,112570.0,2.25822715]
[1758568791268,0.003,112580.0,112570.0,2.25822715]
[1758568791463,0.0034,112580.0,112570.0,2.25822715]
[1758568791671,0.003,112580.0,112570.0,2.25822715]
[1758568791868,0.0034,112580.0,112570.0,1.44014715]
[1758568792070,0.0034,112580.0,112570.0,2.25798715]
[1758568793276,0.0034,112580.0,112570.0,2.25794715]
[1758568793678,0.0034,112580.0,112570.0,1.44014715]
[1758568794080,0.0034,112580.0,112570.0,2.25766715]
[1758568794383,0.0034,112580.0,112570.0,1.44014715]
[1758568794585,0.0034,112580.0,112570.0,2.25762715]
[1758568795774,0.0034,112580.0,112570.0,2.25754715]
[1758568797576,0.0034,112580.0,112570.0,2.25710715]
[1758568797774,0.07977206,112600.0,112590.0,0.1083931]
[1758568797981,0.09345127,112600.0,112590.0,2.36757797]
[1758568798173,0.10143217,112600.0,112590.0,2.36757797]
[1758568798374,0.09265127,112600.0,112590.0,2.36757797]
[1758568798776,0.09305127,112600.0,112590.0,2.36757797]
[1758568798976,0.09705127,112600.0,112590.0,2.36857797]
[1758568800074,0.10605127,112600.0,112590.0,2.37157797]
[1758568800280,0.10605127,112600.0,112590.0,1.55465797]
[1758568800583,0.10565127,112600.0,112590.0,2.37145797]
[1758568800782,0.10605127,112600.0,112590.0,2.37149797]
[1758568800982,0.10565127,112600.0,112590.0,1.55465797]
[1758568801182,0.10565127,112600.0,112590.0,2.37141797]
[1758568801183,0.10605127,112600.0,112590.0,2.37141797]
[1758568801484,0.10605127,112600.0,112590.0,1.55465797]
[1758568801680,0.10605127,112600.0,112590.0,2.37133797]
[1758568802476,0.10605127,112600.0,112590.0,2.37117797]
[1758568802671,0.10606922,112600.0,112590.0,2.37117797]
[1758568803080,0.10606922,112600.0,112590.0,1.9805131]
[1758568803279,0.10606922,112600.0,112590.0,2.37117797]
[1758568803876,0.10606922,112600.0,112590.0,1.55465797]
[1758568804076,0.10606922,112600.0,112590.0,2.37145797]
[1758568804283,0.10606922,112600.0,112590.0,1.55465797]
[1758568804583,0.11934922,112600.0,112590.0,2.37133797]
[1758568805072,0.10606922,112600.0,112590.0,2.37133797]
[1758568805582,0.03588038,112600.0,112590.0,2.37133797]
[1758568809681,0.03588038,112600.0,112590.0,2.37093797]
[1758568810187,0.03588038,112600.0,112590.0,2.37085797]
[1758568810587,0.03588038,112600.0,112590.0,1.55465797]
[1758568811190,0.03588038,112600.0,112590.0,2.37073797]
[1758568812691,0.03548038,112600.0,112590.0,2.37073797]
[1758568813392,0.03588038,112600.0,112590.0,2.37073797]
[1758568816589,0.03588038,112600.0,112590.0,1.55465797]
[1758568816786,0.03588038,112600.0,112590.0,2.37005797]
[1758568817292,0.03588038,112600.0,112590.0,1.55465797]
[1758568817592,0.03588038,112600.0,112590.0,2.37005797]
[1758568821490,0.03588038,112600.0,112590.0,3.01072284]
[1758568821797,0.06590296,112630.0,112620.0,0.1083694]
[1758568822087,0.15462446,112630.0,112620.0,1.99627427]
[1758568822293,0.15462446,112630.0,112620.0,2.00519427]
[1758568822489,0.06590296,112630.0,112620.0,2.00519427]
[1758568822884,0.06590296,112630.0,112620.0,1.6145294]
[1758568823085,0.15462446,112630.0,112620.0,2.00519427]
[1758568823294,0.15462446,112630.0,112620.0,1.18983427]
[1758568823490,0.16362446,112630.0,112620.0,2.00819427]
[1758568823891,0.07490296,112630.0,112620.0,2.00819427]
[1758568824086,0.14041299,112630.0,112620.0,2.00719427]
[1758568824282,0.06207376,112630.0,112620.0,2.00719427]
[1758568824687,0.06407376,112630.0,112620.0,2.00719427]
[1758568824989,0.15279526,112630.0,112620.0,0.8011694]
[1758568825190,0.15279526,112630.0,112620.0,2.00719427]
[1758568826589,0.15279526,112630.0,112620.0,0.8011694]
[1758568826796,0.15279526,112630.0,112620.0,2.00715427]
[1758568827800,0.16175303,112630.0,112620.0,2.00715427]
[1758568829089,0.14299592,112630.0,112620.0,2.00715427]
[1758568829292,0.02787376,112630.0,112620.0,2.00715427]
[1758568829495,0.007,112630.0,112620.0,2.25715427]
[1758568830004,0.0074,112630.0,112620.0,2.25715427]
[1758568830400,0.0074,112630.0,112620.0,1.44183427]
[1758568830602,0.0074,112630.0,112620.0,2.20199798]
[1758568830803,0.0074,112630.0,112620.0,1.38623798]
[1758568831001,0.0074,112630.0,112620.0,2.20195798]
[1758568831609,0.0074,112630.0,112620.0,1.38623798]
[1758568831802,0.0074,112630.0,112620.0,2.20179798]
[1758568833806,0.02975426,112630.0,112620.0,2.20179798]
[1758568834501,0.02975426,112630.0,112620.0,1.38623798]
[1758568834706,0.04339426,112630.0,112620.0,2.20147798]
[1758568835410,0.02975426,112630.0,112620.0,2.20147798]
[1758568836507,0.02975426,112630.0,112620.0,2.49401227]
[1758568838513,0.0074,112630.0,112620.0,2.49401227]
[1758568839611,0.007,112630.0,112620.0,2.49401227]
[1758568839912,0.0074,112630.0,112620.0,2.49401227]
[1758568841115,0.007,112630.0,112620.0,2.49401227]
[1758568841311,0.0074,112630.0,112620.0,2.49401227]
[1758568841515,0.0008,112650.0,112640.0,0.1206336]
[1758568841814,0.01376,112660.0,112650.0,0.1083458]
[1758568841815,0.03598,112660.0,112650.0,0.1083458]
[1758568842118,0.0582501,112660.0,112650.0,1.04168009]
[1758568842620,0.0582501,112660.0,112650.0,0.7491458]
[1758568842820,0.13082131,112660.0,112650.0,1.04168009]
[1758568843014,0.0582501,112660.0,112650.0,1.04168009]
[1758568843214,0.0712501,112660.0,112650.0,1.04368009]
[1758568844024,0.0772501,112660.0,112650.0,1.04468009]
[1758568847517,0.14986388,112660.0,112650.0,1.04468009]
[1758568847722,0.15854899,112660.0,112650.0,1.04468009]
[1758568847922,0.15854899,112660.0,112650.0,0.7521458]
[1758568848126,0.15854899,112660.0,112650.0,1.04468009]
[1758568851126,0.24724689,112660.0,112650.0,1.04468009]
[1758568851327,0.27900756,112660.0,112650.0,1.04468009]
[1758568852928,0.04995521,112660.0,112650.0,1.33721438]
[1758568853332,0.05035521,112660.0,112650.0,1.33721438]
[1758568854426,0.05035521,112660.0,112650.0,2.15261438]
[1758568854623,0.03835521,112660.0,112650.0,2.15761438]
[1758568855423,0.03235521,112660.0,112650.0,2.15661438]
[1758568859430,0.04540521,112660.0,112650.0,2.15661438]
[1758568860725,0.04540521,112660.0,112650.0,1.34121438]
[1758568861332,0.04540521,112660.0,112650.0,2.15637438]
[1758568861531,0.04540521,112660.0,112650.0,2.15629438]
[1758568861834,0.03235521,112660.0,112650.0,2.15629438]
[1758568862930,0.03235521,112660.0,112650.0,1.34121438]
[1758568863131,0.03235521,112660.0,112650.0,2.15625438]
[1758568864632,0.0236701,112660.0,112650.0,2.15625438]
[1758568865028,0.0236701,112660.0,112650.0,2.69878867]
[1758568865333,0.0236701,112660.0,112650.0,2.40625438]
[1758568865533,0.0236701,112660.0,112650.0,1.59121438]
[1758568865734,0.0236701,112660.0,112650.0,2.40625438]
[1758568866328,0.0236701,112660.0,112650.0,1.59121438]
[1758568866532,0.0236701,112660.0,112650.0,2.40625438]
[1758568866935,0.0236701,112660.0,112650.0,1.59121438]
[1758568867122,0.0236701,112660.0,112650.0,2.40625438]
[1758568867834,0.0236701,112660.0,112650.0,1.59121438]
[1758568868034,0.0236701,112660.0,112650.0,2.40625438]
[1758568873041,0.0236701,112660.0,112650.0,1.59121438]
[1758568873342,0.0236701,112660.0,112650.0,2.40621438]
[1758568877046,0.0236701,112660.0,112650.0,1.59121438]
[1758568877343,0.0236701,112660.0,112650.0,2.40617438]
[1758568881651,0.0372601,112660.0,112650.0,2.40617438]
[1758568883248,0.0236701,112660.0,112650.0,2.40617438]
[1758568883552,0.0236701,112660.0,112650.0,2.42413045]
[1758568883752,0.0232701,112660.0,112650.0,2.42413045]
[1758568884052,0.0236701,112660.0,112650.0,2.42413045]
[1758568884755,0.0236701,112660.0,112650.0,1.60917045]
[1758568885049,0.0236701,112660.0,112650.0,0.77410187]
[1758568885050,0.3090801,112660.0,112650.0,0.77410187]
[1758568885247,0.69031239,112660.0,112650.0,1.06663616]
[1758568885549,0.69031239,112660.0,112650.0,1.88155616]
[1758568885749,0.69031239,112660.0,112650.0,0.77410187]
[1758568885942,0.69031239,112660.0,112650.0,0.68539607]
[1758568886142,0.72207306,112660.0,112650.0,0.68539607]
[1758568886347,0.3977781,112660.0,112650.0,0.77410187]
[1758568886548,0.69031239,112660.0,112650.0,0.77410187]
[1758568886948,0.69031239,112660.0,112650.0,1.06663616]
[1758568887144,1.34364668,112660.0,112650.0,0.41330187]
[1758568887449,1.37540735,112660.0,112650.0,0.02495607]
[1758568888650,1.39141106,112660.0,112650.0,0.02495607]
[1758568888952,1.39141106,112660.0,112650.0,0.007]
[1758568889353,2.20637106,112660.0,112650.0,0.007]
[1758568889648,1.39141106,112660.0,112650.0,0.007]
[1758568889852,2.20637106,112660.0,112650.0,0.007]
[1758568890653,2.01138507,112660.0,112650.0,0.007]
[1758568891255,1.19642507,112660.0,112650.0,0.007]
[1758568891454,2.04313234,112660.0,112650.0,0.007]
[1758568891655,2.04317234,112660.0,112650.0,0.007]
[1758568891853,1.99540796,112660.0,112650.0,0.007]
[1758568894859,1.18040796,112660.0,112650.0,0.007]
[1758568895060,1.99544796,112660.0,112650.0,0.007]
[1758568895856,0.0887137,112640.0,112630.0,0.37907065]
[1758568896058,0.9614338,112640.0,112630.0,0.6808]
[1758568896260,0.9614338,112640.0,112630.0,0.33964]
[1758568896763,0.21565651,112640.0,112630.0,0.33964]
[1758568897060,1.03069651,112640.0,112630.0,0.34264]
[1758568897261,1.03269651,112640.0,112630.0,0.35664]
[1758568897759,0.21765651,112640.0,112630.0,0.35664]
[1758568897956,0.21765651,112640.0,112630.0,0.83544419]
[1758568898155,0.21765651,112640.0,112630.0,1.44624419]
[1758568898355,0.0242701,112640.0,112630.0,1.44624419]
[1758568898862,0.002,112640.0,112630.0,1.44624419]
[1758568899056,0.01526,112640.0,112630.0,1.44624419]
[1758568899257,0.01526,112640.0,112630.0,1.19624419]
[1758568899258,0.01566,112640.0,112630.0,1.19624419]
[1758568900161,0.12664612,112640.0,112630.0,1.19624419]
[1758568900962,0.19754815,112640.0,112630.0,1.19624419]
[1758568901256,0.21969815,112640.0,112630.0,1.19624419]
[1758568904763,0.21969815,112640.0,112630.0,1.10752259]
[1758568904962,0.21969815,112640.0,112630.0,0.71744]
[1758568905155,0.21969815,112640.0,112630.0,1.10752259]
[1758568906160,0.21969815,112640.0,112630.0,0.71744]
[1758568906362,0.21969815,112640.0,112630.0,1.10752259]
[1758568907065,0.21969815,112640.0,112630.0,0.35664]
[1758568907466,0.21969815,112640.0,112630.0,0.74672259]
[1758568907866,0.21969815,112640.0,112630.0,0.35664]
[1758568908467,0.21969815,112640.0,112630.0,0.8061615]
[1758568909565,0.21969815,112640.0,112630.0,1.19624409]
[1758568917867,0.21969815,112640.0,112630.0,1.10752259]
[1758568918074,0.25144542,112640.0,112630.0,0.337]
[1758568918374,0.25144542,112640.0,112630.0,0.35664]
[1758568918770,0.25144542,112640.0,112630.0,0.4453615]
[1758568919075,0.21969815,112640.0,112630.0,0.4453615]
[1758568919275,0.21969815,112640.0,112630.0,1.19624409]
[1758568923187,0.18388815,112640.0,112630.0,1.19624409]
[1758568923489,0.20610815,112640.0,112630.0,1.19624409]
[1758568923993,0.21918815,112640.0,112630.0,1.19624409]
[1758568924485,0.21918815,112640.0,112630.0,2.01132409]
[1758568924688,0.21918815,112640.0,112630.0,1.19624409]
[1758568924891,0.21918815,112640.0,112630.0,2.01128409]
[1758568925392,0.21918815,112640.0,112630.0,1.19624409]
[1758568925598,0.21918815,112640.0,112630.0,2.01128409]
[1758568930891,0.21918815,112640.0,112630.0,1.19624409]
[1758568931086,0.21918815,112640.0,112630.0,1.10752259]
[1758568931287,0.21918815,112640.0,112630.0,1.92252259]
[1758568931486,0.21918815,112640.0,112630.0,1.10752259]
[1758568931688,0.60927074,112640.0,112630.0,0.35664]
[1758568931890,0.21918815,112640.0,112630.0,0.35664]
[1758568932194,0.21918815,112640.0,112630.0,1.10752259]
[1758568932694,0.21918815,112640.0,112630.0,0.71744]
[1758568932995,0.21918815,112640.0,112630.0,1.10752259]
[1758568933795,0.21918815,112640.0,112630.0,0.71744]
[1758568934281,0.21918815,112640.0,112630.0,0.8061615]
[1758568934480,0.21918815,112640.0,112630.0,0.71744]
[1758568934681,0.21918815,112640.0,112630.0,0.35664]
[1758568937392,0.60927074,112640.0,112630.0,0.35664]
[1758568937591,0.64101801,112640.0,112630.0,0.35664]
[1758568939191,0.68878239,112640.0,112630.0,0.35664]
[1758568940294,0.64101801,112640.0,112630.0,0.35664]
[1758568940996,0.68878239,112640.0,112630.0,0.35664]
[1758568941387,1.00181801,112640.0,112630.0,0.017]
[1758568941596,1.01783512,112640.0,112630.0,0.017]
[1758568941797,1.83275512,112640.0,112630.0,0.03664]
[1758568943397,1.83271512,112640.0,112630.0,0.03664]
[1758568945600,1.01783512,112640.0,112630.0,0.03664]
[1758568946000,1.44263253,112640.0,112630.0,0.03664]
[1758568946300,0.26695253,112640.0,112630.0,0.03664]
[1758568946502,1.08183253,112640.0,112630.0,0.42672259]
[1758568947404,0.26695253,112640.0,112630.0,0.42672259]
[1758568947604,1.08183253,112640.0,112630.0,0.42672259]
[1758568947902,1.08183253,112640.0,112630.0,0.03664]
[1758568948403,0.26695253,112640.0,112630.0,0.03664]
[1758568948604,1.03406815,112640.0,112630.0,0.03664]
[1758568949099,1.03406815,112640.0,112630.0,0.42672259]
[1758568950499,1.03406815,112640.0,112630.0,0.03664]
[1758568951008,0.21918815,112640.0,112630.0,0.03664]
[1758568951198,1.03406815,112640.0,112630.0,0.03664]
[1758568952701,1.32666085,112640.0,112630.0,0.3292327]
[1758568952902,1.03406815,112640.0,112630.0,0.3292327]
[1758568953105,1.32666085,112640.0,112630.0,0.3292327]
[1758568953405,0.51178085,112640.0,112630.0,0.3292327]
[1758568953607,1.32662085,112640.0,112630.0,0.3292327]
[1758568957407,1.61921355,112640.0,112630.0,0.3292327]
[1758568957602,1.98001355,112640.0,112630.0,0.03664]
[1758568957909,0.1247794,112620.0,112610.0,0.6730327]
[1758568958202,0.1247873,112610.0,112600.0,0.37862241]
[1758568958399,0.43965242,112610.0,112600.0,1.00085511]
[1758568959105,0.43965242,112610.0,112600.0,1.00125511]
[1758568959302,0.44065242,112610.0,112600.0,1.00425511]
[1758568959903,0.44165242,112610.0,112600.0,1.00425511]
[1758568960102,0.44165242,112610.0,112600.0,0.71166241]
[1758568960403,0.44165242,112610.0,112600.0,1.00425511]
[1758568961595,0.45073748,112610.0,112600.0,1.00425511]
[1758568962707,1.26557748,112610.0,112600.0,1.00425511]
[1758568963207,0.45073748,112610.0,112600.0,1.00425511]
[1758568963411,1.26557748,112610.0,112600.0,1.00425511]
[1758568964409,0.45073748,112610.0,112600.0,1.00425511]
[1758568964709,1.26557748,112610.0,112600.0,1.00425511]
[1758568966811,0.45073748,112610.0,112600.0,1.00425511]
[1758568967310,1.26557748,112610.0,112600.0,1.00425511]
[1758568969310,1.26557748,112610.0,112600.0,0.9864327]
[1758568969512,1.28661168,112610.0,112600.0,0.9864327]
[1758568971315,1.28661168,112610.0,112600.0,0.6256327]
[1758568972416,2.19000438,112610.0,112600.0,0.0034]
[1758568972615,2.19000438,112610.0,112600.0,0.003]
[1758568972813,2.19000438,112610.0,112600.0,0.0034]
[1758568973115,1.89741168,112610.0,112600.0,0.0034]
[1758568973606,1.08257168,112610.0,112600.0,0.0034]
[1758568973807,1.89741168,112610.0,112600.0,0.0034]
[1758568975709,1.08257168,112610.0,112600.0,0.0034]
[1758568975913,1.89737168,112610.0,112600.0,0.0034]
[1758568976212,1.08257168,112610.0,112600.0,0.02304]
[1758568976414,1.89737168,112610.0,112600.0,0.02304]
[1758568977815,1.89737168,112610.0,112600.0,0.0034]
[1758568980021,0.78997898,112610.0,112600.0,0.02304]
[1758568980223,1.89737168,112610.0,112600.0,0.02304]
[1758568980423,0.17917898,112610.0,112600.0,0.3156327]
[1758568980614,1.28657168,112610.0,112600.0,0.3156327]
[1758568981014,1.28697168,112610.0,112600.0,0.3156327]
[1758568981217,1.28697168,112610.0,112600.0,0.02304]
[1758568981415,1.28697168,112610.0,112600.0,0.3156327]
[1758568982423,0.47217168,112610.0,112600.0,0.4043779]
[1758568982617,1.28697168,112610.0,112600.0,0.6764327]
[1758568982928,1.28697168,112610.0,112600.0,0.3156327]
[1758568985623,1.28697168,112610.0,112600.0,0.02304]
[1758568986822,1.28697168,112610.0,112600.0,0.0034]
[1758568987021,1.64777168,112610.0,112600.0,0.0034]
[1758568987220,1.97215514,112610.0,112600.0,0.0034]
[1758568987525,0.124033,112590.0,112580.0,0.0008]
[1758568987716,0.1018009,112580.0,112570.0,0.77973894]
[1758568987920,0.43890602,112580.0,112570.0,1.07973894]
[1758568988124,0.14631332,112580.0,112570.0,1.07973894]
[1758568988325,0.14631342,112580.0,112570.0,1.32973894]
[1758568988722,0.14631342,112580.0,112570.0,1.33013894]
[1758568988927,0.14931342,112580.0,112570.0,1.33813894]
[1758568989320,0.21952892,112580.0,112570.0,1.34213894]
[1758568990827,0.13076792,112580.0,112570.0,1.34213894]
[1758568991225,0.13076792,112580.0,112570.0,1.63473164]
[1758568991428,0.09548792,112580.0,112570.0,2.44949164]
[1758568991824,0.09588792,112580.0,112570.0,2.44949164]
[1758568992125,0.02527242,112580.0,112570.0,2.44949164]
[1758568992431,0.02567242,112580.0,112570.0,2.44949164]
[1758568993830,0.02567242,112580.0,112570.0,1.86430624]
[1758568994034,0.02567242,112580.0,112570.0,2.44949164]
[1758569001641,0.02567242,112580.0,112570.0,1.63473164]
[1758569001937,0.02567242,112580.0,112570.0,2.44949164]
[1758569002937,0.02567242,112580.0,112570.0,1.63473164]
[1758569003239,0.12804332,112580.0,112570.0,2.44945164]
[1758569004241,0.12804332,112580.0,112570.0,1.34213894]
[1758569004542,0.12804332,112580.0,112570.0,1.90685894]
[1758569004739,0.12804332,112580.0,112570.0,1.90285894]
[1758569004941,0.12804332,112580.0,112570.0,1.90385894]
[1758569005238,0.12804332,112580.0,112570.0,1.90345894]
[1758569005439,0.12804332,112580.0,112570.0,1.90385894]
[1758569006340,0.12804332,112580.0,112570.0,1.89985894]
[1758569007534,0.12804332,112580.0,112570.0,1.89981894]
[1758569007743,0.12804332,112580.0,112570.0,1.89941894]
[1758569007930,0.12804332,112580.0,112570.0,1.08513894]
[1758569008134,0.12804332,112580.0,112570.0,1.89981894]